[Event "Early-Titled-Tuesday-Blitz-February-20-2024"]
[Site "Chess.com"]
[Date "2024.02.20"]
[Round "4"]
[White "djano"]
[Black "AttilaTurzo"]
[Result "0-1"]
[WhiteElo "2666"]
[BlackElo "2505"]
[TimeControl "180+1"]
[EndTime "8:38:54 PST"]
[Termination "AttilaTurzo won by resignation"]

1. e4 {[%clk 0:03:00.9]} 1... c6 {[%clk 0:02:51.4]} 2. d4 {[%clk 0:03:00.6]}
2... d5 {[%clk 0:02:52.3]} 3. exd5 {[%clk 0:03:01.5]} 3... cxd5 {[%clk
0:02:52.8]} 4. Bd3 {[%clk 0:03:00.9]} 4... Nc6 {[%clk 0:02:52]} 5. c3 {[%clk
0:03:01.4]} 5... Nf6 {[%clk 0:02:50.8]} 6. Bf4 {[%clk 0:03:01.6]} 6... Bg4
{[%clk 0:02:48.7]} 7. Qb3 {[%clk 0:03:01.7]} 7... Qd7 {[%clk 0:02:47.8]} 8. Nd2
{[%clk 0:03:01.9]} 8... e6 {[%clk 0:02:47.2]} 9. Ngf3 {[%clk 0:03:01.9]} 9...
Bxf3 {[%clk 0:02:47.4]} 10. Nxf3 {[%clk 0:03:01.2]} 10... Bd6 {[%clk 0:02:46.7]}
11. Bxd6 {[%clk 0:03:01.7]} 11... Qxd6 {[%clk 0:02:47.2]} 12. O-O {[%clk
0:03:02.4]} 12... O-O {[%clk 0:02:47.4]} 13. Rae1 {[%clk 0:03:02.8]} 13... Nd7
{[%clk 0:02:41.1]} 14. Qc2 {[%clk 0:02:58.6]} 14... g6 {[%clk 0:02:40.2]} 15.
Qd2 {[%clk 0:02:58.7]} 15... e5 {[%clk 0:02:36.1]} 16. dxe5 {[%clk 0:02:44.9]}
16... Ndxe5 {[%clk 0:02:37]} 17. Be2 {[%clk 0:02:38.2]} 17... Rad8 {[%clk
0:02:32.2]} 18. Rd1 {[%clk 0:02:29.3]} 18... Qf6 {[%clk 0:02:04.7]} 19. Nd4
{[%clk 0:02:22.4]} 19... Kg7 {[%clk 0:01:58.9]} 20. Bb5 {[%clk 0:02:13.1]} 20...
a6 {[%clk 0:01:48.8]} 21. Ba4 {[%clk 0:02:11.4]} 21... Nc4 {[%clk 0:01:39.6]}
22. Qc1 {[%clk 0:02:06]} 22... b5 {[%clk 0:01:30.2]} 23. Bb3 {[%clk 0:02:01.4]}
23... N6e5 {[%clk 0:01:26.3]} 24. h3 {[%clk 0:01:54.2]} 24... Rfe8 {[%clk
0:01:10.5]} 25. Rfe1 {[%clk 0:01:51.8]} 25... h6 {[%clk 0:01:07]} 26. Bc2 {[%clk
0:01:48.3]} 26... Nc6 {[%clk 0:00:57.3]} 27. Nxc6 {[%clk 0:01:38.9]} 27... Qxc6
{[%clk 0:00:54.5]} 28. Qf4 {[%clk 0:01:35.9]} 28... Rxe1+ {[%clk 0:00:47.5]} 29.
Rxe1 {[%clk 0:01:35.8]} 29... Qf6 {[%clk 0:00:40]} 30. Qc1 {[%clk 0:01:28.8]}
30... d4 {[%clk 0:00:39.6]} 31. b3 {[%clk 0:01:28.9]} 31... d3 {[%clk
0:00:37.2]} 32. bxc4 {[%clk 0:01:23.1]} 32... d2 {[%clk 0:00:36.4]} 33. Qd1
{[%clk 0:01:22.6]} 33... dxe1=Q+ {[%clk 0:00:35.2]} 34. Qxe1 {[%clk 0:01:23.5]}
34... bxc4 {[%clk 0:00:34.6]} 35. Qe3 {[%clk 0:01:24.1]} 35... Rd6 {[%clk
0:00:31.6]} 36. g3 {[%clk 0:01:18.6]} 36... Re6 {[%clk 0:00:31.7]} 37. Qc5
{[%clk 0:01:16.4]} 37... Qxc3 {[%clk 0:00:30.3]} 38. Ba4 {[%clk 0:01:07.7]}
38... Qe1+ {[%clk 0:00:27.9]} 39. Kg2 {[%clk 0:01:06.7]} 39... Qe4+ {[%clk
0:00:27]} 40. Kh2 {[%clk 0:01:07.2]} 40... Qf3 {[%clk 0:00:23.2]} 41. Qd4+
{[%clk 0:01:01.1]} 41... Rf6 {[%clk 0:00:22.8]} 42. Kg1 {[%clk 0:00:59.3]} 42...
Qd3 {[%clk 0:00:21.9]} 43. Qe5 {[%clk 0:00:56.9]} 43... c3 {[%clk 0:00:20.5]}
44. Qc5 {[%clk 0:00:56.5]} 44... Qb1+ {[%clk 0:00:16.8]} 45. Kh2 {[%clk
0:00:54.7]} 45... Qxa2 {[%clk 0:00:17.2]} 46. Bc6 {[%clk 0:00:53.4]} 46... Qxf2+
{[%clk 0:00:17.1]} 47. Bg2 {[%clk 0:00:52.9]} 47... Qxc5 {[%clk 0:00:17]} 0-1

[Event "Early-Titled-Tuesday-Blitz-February-20-2024"]
[Site "Chess.com"]
[Date "2024.02.20"]
[Round "4"]
[White "doctorcristian"]
[Black "Elnaz_Kaliakhmet"]
[Result "0-1"]
[WhiteElo "2593"]
[BlackElo "2428"]
[TimeControl "180+1"]
[EndTime "8:38:57 PST"]
[Termination "Elnaz_Kaliakhmet won by checkmate"]

1. d4 {[%clk 0:02:52.2]} 1... Nf6 {[%clk 0:02:59.2]} 2. Nc3 {[%clk 0:02:44.1]}
2... d5 {[%clk 0:02:58.7]} 3. Bf4 {[%clk 0:02:43]} 3... c5 {[%clk 0:02:56.8]} 4.
e3 {[%clk 0:02:42.8]} 4... a6 {[%clk 0:02:56.5]} 5. h3 {[%clk 0:02:40.6]} 5...
Nc6 {[%clk 0:02:53.6]} 6. Nf3 {[%clk 0:02:38.1]} 6... e6 {[%clk 0:02:49.3]} 7.
Ne5 {[%clk 0:02:37.8]} 7... cxd4 {[%clk 0:02:39.6]} 8. Nxc6 {[%clk 0:02:35.4]}
8... bxc6 {[%clk 0:02:39.2]} 9. exd4 {[%clk 0:02:34.7]} 9... Bb4 {[%clk
0:02:32.1]} 10. Bd3 {[%clk 0:02:33.6]} 10... O-O {[%clk 0:02:31.6]} 11. O-O
{[%clk 0:02:33.3]} 11... c5 {[%clk 0:02:29.2]} 12. dxc5 {[%clk 0:02:31]} 12...
Bxc5 {[%clk 0:02:28.8]} 13. Na4 {[%clk 0:02:31.2]} 13... Bd6 {[%clk 0:02:20.3]}
14. Bxd6 {[%clk 0:02:31]} 14... Qxd6 {[%clk 0:02:21.2]} 15. c4 {[%clk
0:02:31.6]} 15... Bd7 {[%clk 0:02:18.1]} 16. cxd5 {[%clk 0:02:16.4]} 16... Nxd5
{[%clk 0:02:17.8]} 17. Nc3 {[%clk 0:02:16.4]} 17... Bc6 {[%clk 0:02:11.1]} 18.
Be4 {[%clk 0:02:16.3]} 18... Rfd8 {[%clk 0:02:09.9]} 19. Nxd5 {[%clk 0:02:09]}
19... Bxd5 {[%clk 0:02:09.4]} 20. Bxd5 {[%clk 0:02:09.4]} 20... Qxd5 {[%clk
0:02:02.4]} 21. Qe2 {[%clk 0:02:06.5]} 21... a5 {[%clk 0:01:58.1]} 22. Rfd1
{[%clk 0:02:06]} 22... Qb7 {[%clk 0:01:55.9]} 23. Rd2 {[%clk 0:01:57.3]} 23...
Rxd2 {[%clk 0:01:52.7]} 24. Qxd2 {[%clk 0:01:55.6]} 24... h6 {[%clk 0:01:51.7]}
25. Rd1 {[%clk 0:01:55.6]} 25... a4 {[%clk 0:01:51.2]} 26. Rc1 {[%clk
0:01:53.7]} 26... Rb8 {[%clk 0:01:49.3]} 27. Rc2 {[%clk 0:01:53.2]} 27... Qb5
{[%clk 0:01:40.2]} 28. Qd6 {[%clk 0:01:50]} 28... Rb6 {[%clk 0:01:26.2]} 29.
Qd8+ {[%clk 0:01:37.8]} 29... Kh7 {[%clk 0:01:25.8]} 30. g3 {[%clk 0:01:37]}
30... a3 {[%clk 0:01:23.3]} 31. bxa3 {[%clk 0:01:23.3]} 31... Qb1+ {[%clk
0:01:22.9]} 32. Kg2 {[%clk 0:01:23.3]} 32... Qxc2 {[%clk 0:01:20.2]} 33. Qxb6
{[%clk 0:01:23]} 33... Qxa2 {[%clk 0:01:17.1]} 34. Qb4 {[%clk 0:01:19.7]} 34...
Qd5+ {[%clk 0:01:15.5]} 35. Kh2 {[%clk 0:01:19.8]} 35... Qf3 {[%clk 0:01:14.6]}
36. Kg1 {[%clk 0:01:18.5]} 36... Qd1+ {[%clk 0:01:13.5]} 37. Kg2 {[%clk
0:01:18.9]} 37... Qd5+ {[%clk 0:01:14]} 38. Kh2 {[%clk 0:01:18.5]} 38... Qf3
{[%clk 0:01:14.5]} 39. Qc4 {[%clk 0:01:18.9]} 39... Qxf2+ {[%clk 0:01:08.5]} 40.
Kh1 {[%clk 0:01:18.9]} 40... Qf3+ {[%clk 0:01:08.7]} 41. Kh2 {[%clk 0:01:18.9]}
41... Qxa3 {[%clk 0:01:08.5]} 42. Qe4+ {[%clk 0:01:18.9]} 42... g6 {[%clk
0:01:08.4]} 43. Qe5 {[%clk 0:01:18.8]} 43... Qa2+ {[%clk 0:01:06.5]} 44. Kh1
{[%clk 0:01:18.4]} 44... Qb1+ {[%clk 0:01:06.4]} 45. Kh2 {[%clk 0:01:18.7]}
45... Qf5 {[%clk 0:01:05.7]} 46. Qc7 {[%clk 0:01:18.2]} 46... Qf2+ {[%clk
0:01:02.6]} 47. Kh1 {[%clk 0:01:17.6]} 47... Kg7 {[%clk 0:01:03.2]} 48. h4
{[%clk 0:01:17.6]} 48... g5 {[%clk 0:00:55.5]} 49. hxg5 {[%clk 0:01:16.3]} 49...
hxg5 {[%clk 0:00:56.4]} 50. Qe5+ {[%clk 0:01:16.2]} 50... Kg6 {[%clk 0:00:52.2]}
51. Qe4+ {[%clk 0:01:15.8]} 51... Qf5 {[%clk 0:00:52]} 52. Qe3 {[%clk
0:01:15.8]} 52... f6 {[%clk 0:00:50.3]} 53. Kh2 {[%clk 0:01:16]} 53... e5 {[%clk
0:00:50.2]} 54. Qb3 {[%clk 0:01:13.2]} 54... Qf2+ {[%clk 0:00:48.9]} 55. Kh3
{[%clk 0:01:11.1]} 55... Qf1+ {[%clk 0:00:48.2]} 56. Kh2 {[%clk 0:01:10.3]}
56... Qe2+ {[%clk 0:00:40.4]} 57. Kh3 {[%clk 0:01:09.1]} 57... g4+ {[%clk
0:00:35.8]} 58. Kh4 {[%clk 0:01:05.1]} 58... Qh2+ {[%clk 0:00:34.9]} 59. Kxg4
{[%clk 0:01:05.6]} 59... Qh5# {[%clk 0:00:35.5]} 0-1

[Event "Early-Titled-Tuesday-Blitz-February-20-2024"]
[Site "Chess.com"]
[Date "2024.02.20"]
[Round "4"]
[White "ajeale2"]
[Black "Doublekk14"]
[Result "0-1"]
[WhiteElo "2493"]
[BlackElo "2301"]
[TimeControl "180+1"]
[EndTime "8:38:58 PST"]
[Termination "Doublekk14 won on time"]

1. d4 {[%clk 0:03:00.9]} 1... Nf6 {[%clk 0:02:59.4]} 2. Bf4 {[%clk 0:03:01]}
2... d5 {[%clk 0:02:56.9]} 3. e3 {[%clk 0:03:01.1]} 3... e6 {[%clk 0:02:56.9]}
4. Nd2 {[%clk 0:03:01.3]} 4... Bd6 {[%clk 0:02:56.7]} 5. Bg3 {[%clk 0:03:01.7]}
5... O-O {[%clk 0:02:55.1]} 6. Bd3 {[%clk 0:03:00.2]} 6... c5 {[%clk 0:02:54.2]}
7. c3 {[%clk 0:03:00.2]} 7... Nc6 {[%clk 0:02:54.1]} 8. Ngf3 {[%clk 0:02:58.1]}
8... Qe7 {[%clk 0:02:50.6]} 9. Ne5 {[%clk 0:02:57.8]} 9... Bxe5 {[%clk
0:02:46.3]} 10. dxe5 {[%clk 0:02:56.3]} 10... Nd7 {[%clk 0:02:46.4]} 11. Nf3
{[%clk 0:02:33.3]} 11... f5 {[%clk 0:02:34.1]} 12. exf6 {[%clk 0:02:32.8]} 12...
Nxf6 {[%clk 0:02:34.1]} 13. Bh4 {[%clk 0:02:15.2]} 13... e5 {[%clk 0:02:20.9]}
14. Bb5 {[%clk 0:02:14.2]} 14... Rd8 {[%clk 0:02:06.7]} 15. O-O {[%clk
0:02:02.1]} 15... e4 {[%clk 0:02:03.5]} 16. Nd2 {[%clk 0:01:55.9]} 16... Ne5
{[%clk 0:01:50.6]} 17. Be2 {[%clk 0:01:50.3]} 17... Be6 {[%clk 0:01:33.6]} 18.
a4 {[%clk 0:01:48.5]} 18... c4 {[%clk 0:01:29]} 19. f4 {[%clk 0:01:42.3]} 19...
Nd3 {[%clk 0:01:25.4]} 20. b3 {[%clk 0:01:32.1]} 20... Rac8 {[%clk 0:01:13.2]}
21. bxc4 {[%clk 0:01:20.3]} 21... Qc5 {[%clk 0:01:03.9]} 22. Bxd3 {[%clk
0:01:11.5]} 22... Qxe3+ {[%clk 0:01:02.2]} 23. Kh1 {[%clk 0:01:01.5]} 23... Qxd3
{[%clk 0:01:01.9]} 24. Bxf6 {[%clk 0:00:45.9]} 24... gxf6 {[%clk 0:01:00.8]} 25.
f5 {[%clk 0:00:37.4]} 25... Bf7 {[%clk 0:00:59.8]} 26. Qg4+ {[%clk 0:00:34.9]}
26... Kh8 {[%clk 0:00:59.7]} 27. Rad1 {[%clk 0:00:35.5]} 27... e3 {[%clk
0:00:44.4]} 28. Qh3 {[%clk 0:00:14.8]} 28... dxc4 {[%clk 0:00:37.3]} 29. Qh4
{[%clk 0:00:14.7]} 29... Rc6 {[%clk 0:00:31.4]} 30. Nf3 {[%clk 0:00:02.9]} 30...
e2 {[%clk 0:00:25.9]} 0-1

[Event "Early-Titled-Tuesday-Blitz-February-20-2024"]
[Site "Chess.com"]
[Date "2024.02.20"]
[Round "4"]
[White "wonderfultime"]
[Black "JSPrepz"]
[Result "0-1"]
[WhiteElo "3058"]
[BlackElo "2877"]
[TimeControl "180+1"]
[EndTime "8:38:59 PST"]
[Termination "JSPrepz won by resignation"]

1. d4 {[%clk 0:03:00.9]} 1... Nf6 {[%clk 0:02:59.4]} 2. Nf3 {[%clk 0:03:00.6]}
2... c5 {[%clk 0:02:59.3]} 3. c3 {[%clk 0:03:00.8]} 3... g6 {[%clk 0:02:58.6]}
4. Bf4 {[%clk 0:02:54.8]} 4... Bg7 {[%clk 0:02:58.3]} 5. e3 {[%clk 0:02:54.8]}
5... cxd4 {[%clk 0:02:58.7]} 6. cxd4 {[%clk 0:02:54.9]} 6... O-O {[%clk
0:02:59.4]} 7. Nc3 {[%clk 0:02:55.4]} 7... Qb6 {[%clk 0:02:56.4]} 8. Qb3 {[%clk
0:02:52.1]} 8... Qxb3 {[%clk 0:02:55.3]} 9. axb3 {[%clk 0:02:53]} 9... Nc6
{[%clk 0:02:53.3]} 10. Be2 {[%clk 0:02:48.3]} 10... d6 {[%clk 0:02:53.7]} 11. h3
{[%clk 0:02:46.3]} 11... Be6 {[%clk 0:02:46.6]} 12. Bc4 {[%clk 0:02:41.8]} 12...
d5 {[%clk 0:02:27.6]} 13. Be2 {[%clk 0:02:34.7]} 13... Rfc8 {[%clk 0:02:27.5]}
14. O-O {[%clk 0:02:32.9]} 14... Bf5 {[%clk 0:02:13.1]} 15. Rfc1 {[%clk
0:02:17.1]} 15... Nb4 {[%clk 0:02:04.1]} 16. Ne1 {[%clk 0:02:12.7]} 16... Ne4
{[%clk 0:01:45.8]} 17. g4 {[%clk 0:01:54.8]} 17... Be6 {[%clk 0:01:36.5]} 18.
Nf3 {[%clk 0:01:45.2]} 18... h6 {[%clk 0:01:29.9]} 19. Kg2 {[%clk 0:01:39.7]}
19... g5 {[%clk 0:01:28]} 20. Bh2 {[%clk 0:01:23.2]} 20... f5 {[%clk 0:01:28.1]}
21. gxf5 {[%clk 0:01:01.1]} 21... Bxf5 {[%clk 0:01:29]} 22. Nb5 {[%clk
0:01:01.6]} 22... Rxc1 {[%clk 0:00:54.9]} 23. Rxc1 {[%clk 0:01:02.5]} 23... a6
{[%clk 0:00:55.5]} 24. Nc7 {[%clk 0:00:42.7]} 24... Rc8 {[%clk 0:00:55.5]} 25.
Ra1 {[%clk 0:00:43.4]} 25... e5 {[%clk 0:00:32.1]} 26. Ra4 {[%clk 0:00:28.7]}
26... Rxc7 {[%clk 0:00:21.8]} 27. Rxb4 {[%clk 0:00:28.4]} 27... Rc2 {[%clk
0:00:22.7]} 28. Kf1 {[%clk 0:00:28.8]} 28... Bxh3+ {[%clk 0:00:21.1]} 29. Ke1
{[%clk 0:00:29.3]} 29... exd4 {[%clk 0:00:20.3]} 30. Nxd4 {[%clk 0:00:29.3]}
30... Rxb2 {[%clk 0:00:20.6]} 31. Rxb7 {[%clk 0:00:24.7]} 31... Bxd4 {[%clk
0:00:19.8]} 32. exd4 {[%clk 0:00:23.9]} 32... Rb1+ {[%clk 0:00:19.6]} 33. Bd1
{[%clk 0:00:24.5]} 33... Bg4 {[%clk 0:00:20.4]} 0-1

[Event "Early-Titled-Tuesday-Blitz-February-20-2024"]
[Site "Chess.com"]
[Date "2024.02.20"]
[Round "4"]
[White "Zorbos"]
[Black "Karttunen"]
[Result "0-1"]
[WhiteElo "2470"]
[BlackElo "2675"]
[TimeControl "180+1"]
[EndTime "8:39:00 PST"]
[Termination "Karttunen won by resignation"]

1. e4 {[%clk 0:02:52.4]} 1... c5 {[%clk 0:02:58.5]} 2. Nf3 {[%clk 0:02:51.5]}
2... d6 {[%clk 0:02:58.9]} 3. d4 {[%clk 0:02:51.4]} 3... cxd4 {[%clk 0:02:59.8]}
4. Nxd4 {[%clk 0:02:51.5]} 4... Nf6 {[%clk 0:03:00.2]} 5. Nc3 {[%clk 0:02:52.1]}
5... a6 {[%clk 0:02:59.7]} 6. Be3 {[%clk 0:02:52.1]} 6... e5 {[%clk 0:02:59.7]}
7. Nb3 {[%clk 0:02:51.3]} 7... Be6 {[%clk 0:03:00.1]} 8. f3 {[%clk 0:02:51.6]}
8... h5 {[%clk 0:02:58.5]} 9. Qd2 {[%clk 0:02:52]} 9... Nbd7 {[%clk 0:02:57.2]}
10. O-O-O {[%clk 0:02:52.4]} 10... g6 {[%clk 0:02:50.5]} 11. Kb1 {[%clk
0:02:52.5]} 11... Rc8 {[%clk 0:02:47.7]} 12. g3 {[%clk 0:02:52.7]} 12... Qc7
{[%clk 0:02:37.3]} 13. h3 {[%clk 0:02:52.7]} 13... b5 {[%clk 0:02:29.3]} 14. Nd5
{[%clk 0:02:52.3]} 14... Bxd5 {[%clk 0:02:27.7]} 15. exd5 {[%clk 0:02:53.2]}
15... Bg7 {[%clk 0:02:00.2]} 16. Bg2 {[%clk 0:02:46.8]} 16... O-O {[%clk
0:01:58.7]} 17. g4 {[%clk 0:02:46.4]} 17... Rfe8 {[%clk 0:01:55.2]} 18. f4
{[%clk 0:02:44.4]} 18... exf4 {[%clk 0:01:51.3]} 19. Bxf4 {[%clk 0:02:43.2]}
19... Ne4 {[%clk 0:01:43.1]} 20. Bxe4 {[%clk 0:02:28.9]} 20... Rxe4 {[%clk
0:01:42.9]} 21. Rc1 {[%clk 0:02:18.1]} 21... Nb6 {[%clk 0:01:25.9]} 22. Qh2
{[%clk 0:01:59.9]} 22... Nc4 {[%clk 0:01:22.7]} 23. c3 {[%clk 0:01:51.6]} 23...
Rce8 {[%clk 0:01:21]} 24. Rc2 {[%clk 0:01:27.6]} 24... h4 {[%clk 0:01:20.8]} 25.
Nd2 {[%clk 0:01:18.1]} 25... Re2 {[%clk 0:01:10.4]} 26. Qg1 {[%clk 0:01:10]}
26... Ne3 {[%clk 0:01:04.6]} 27. Rc1 {[%clk 0:00:55.8]} 27... b4 {[%clk
0:00:42.9]} 28. cxb4 {[%clk 0:00:30.4]} 28... Qb7 {[%clk 0:00:43.2]} 29. Bxe3
{[%clk 0:00:29.3]} 29... R8xe3 {[%clk 0:00:42.5]} 30. Nc4 {[%clk 0:00:29.9]}
30... Qxb4 {[%clk 0:00:38.6]} 31. Rh2 {[%clk 0:00:12.1]} 31... Re1 {[%clk
0:00:29.9]} 32. Qxe3 {[%clk 0:00:07.2]} 32... Rxe3 {[%clk 0:00:29.2]} 33. Nxe3
{[%clk 0:00:08.1]} 33... Qe4+ {[%clk 0:00:28.8]} 34. Nc2 {[%clk 0:00:08.1]}
34... Qe5 {[%clk 0:00:29.2]} 0-1

[Event "Early-Titled-Tuesday-Blitz-February-20-2024"]
[Site "Chess.com"]
[Date "2024.02.20"]
[Round "4"]
[White "Jumbo"]
[Black "SaiAgni_98"]
[Result "1-0"]
[WhiteElo "2821"]
[BlackElo "2569"]
[TimeControl "180+1"]
[EndTime "8:39:01 PST"]
[Termination "Jumbo won by checkmate"]

1. e4 {[%clk 0:03:00.9]} 1... e6 {[%clk 0:02:59.2]} 2. d4 {[%clk 0:03:00.5]}
2... d5 {[%clk 0:02:59.2]} 3. e5 {[%clk 0:03:00.1]} 3... c5 {[%clk 0:02:59]} 4.
c3 {[%clk 0:03:00.8]} 4... Bd7 {[%clk 0:02:57.4]} 5. Nf3 {[%clk 0:03:00.5]} 5...
cxd4 {[%clk 0:02:57.6]} 6. cxd4 {[%clk 0:02:59.5]} 6... Qb6 {[%clk 0:02:57.9]}
7. Nc3 {[%clk 0:02:59.8]} 7... Nc6 {[%clk 0:02:51.4]} 8. a3 {[%clk 0:02:58.8]}
8... Nh6 {[%clk 0:02:48.9]} 9. b4 {[%clk 0:02:53.4]} 9... Nf5 {[%clk 0:02:39.9]}
10. Na4 {[%clk 0:02:53.7]} 10... Qc7 {[%clk 0:02:32.6]} 11. Bb2 {[%clk
0:02:53.3]} 11... Rc8 {[%clk 0:02:25.1]} 12. Bd3 {[%clk 0:02:41.5]} 12... Be7
{[%clk 0:02:14.8]} 13. O-O {[%clk 0:02:41.5]} 13... O-O {[%clk 0:02:14.6]} 14.
Re1 {[%clk 0:02:35.8]} 14... Qb8 {[%clk 0:02:13.5]} 15. Rc1 {[%clk 0:02:30.4]}
15... Rc7 {[%clk 0:02:07.8]} 16. Nc5 {[%clk 0:02:29.1]} 16... Rfc8 {[%clk
0:02:05.9]} 17. Qd2 {[%clk 0:02:14]} 17... Nh4 {[%clk 0:01:44.2]} 18. Ng5 {[%clk
0:02:03.3]} 18... h6 {[%clk 0:01:26.9]} 19. Nh3 {[%clk 0:01:57.5]} 19... Nd8
{[%clk 0:01:14]} 20. Qf4 {[%clk 0:01:47.2]} 20... Ng6 {[%clk 0:01:10.6]} 21. Qg4
{[%clk 0:01:47]} 21... Nf8 {[%clk 0:01:03.1]} 22. Nf4 {[%clk 0:01:45.3]} 22...
f5 {[%clk 0:00:57.8]} 23. exf6 {[%clk 0:01:39.2]} 23... Bxf6 {[%clk 0:00:57.6]}
24. Nh5 {[%clk 0:01:32.1]} 24... Kh8 {[%clk 0:00:18.5]} 25. Nxf6 {[%clk
0:01:17.1]} 25... gxf6 {[%clk 0:00:19.4]} 26. Qh4 {[%clk 0:01:16.9]} 26... Kg7
{[%clk 0:00:16.9]} 27. Re3 {[%clk 0:01:07.3]} 27... Be8 {[%clk 0:00:16.2]} 28.
Rh3 {[%clk 0:00:59.2]} 28... h5 {[%clk 0:00:15.4]} 29. Rf3 {[%clk 0:00:55.8]}
29... Rf7 {[%clk 0:00:13.8]} 30. Rg3+ {[%clk 0:00:55.6]} 30... Kh8 {[%clk
0:00:11.1]} 31. Re1 {[%clk 0:00:47.9]} 31... Nh7 {[%clk 0:00:09]} 32. Qxh5
{[%clk 0:00:38.5]} 32... Qf4 {[%clk 0:00:08.6]} 33. Qg6 {[%clk 0:00:30.6]} 33...
Rf8 {[%clk 0:00:05.6]} 34. Qg7# {[%clk 0:00:30]} 1-0

[Event "Early-Titled-Tuesday-Blitz-February-20-2024"]
[Site "Chess.com"]
[Date "2024.02.20"]
[Round "4"]
[White "Der_Balak_3Halak"]
[Black "AlexanderKing"]
[Result "1-0"]
[WhiteElo "2449"]
[BlackElo "2636"]
[TimeControl "180+1"]
[EndTime "8:39:01 PST"]
[Termination "Der_Balak_3Halak won on time"]

1. e4 {[%clk 0:03:00.9]} 1... e6 {[%clk 0:03:00.9]} 2. d4 {[%clk 0:03:00.1]}
2... d5 {[%clk 0:03:01.5]} 3. exd5 {[%clk 0:03:01]} 3... exd5 {[%clk 0:03:01.8]}
4. Bd3 {[%clk 0:03:00.8]} 4... c5 {[%clk 0:03:01.8]} 5. Qe2+ {[%clk 0:02:59.1]}
5... Qe7 {[%clk 0:02:59.9]} 6. dxc5 {[%clk 0:02:54.7]} 6... Qxe2+ {[%clk
0:02:59.1]} 7. Nxe2 {[%clk 0:02:55.6]} 7... Bxc5 {[%clk 0:02:59.5]} 8. O-O
{[%clk 0:02:51.8]} 8... Nc6 {[%clk 0:02:57.3]} 9. Nd2 {[%clk 0:02:52]} 9... Nf6
{[%clk 0:02:34.1]} 10. Nb3 {[%clk 0:02:49.7]} 10... Bb6 {[%clk 0:02:22]} 11. a4
{[%clk 0:02:24.3]} 11... a6 {[%clk 0:02:11.8]} 12. c3 {[%clk 0:02:22.1]} 12...
O-O {[%clk 0:02:03.2]} 13. Ned4 {[%clk 0:02:20.7]} 13... Ne5 {[%clk 0:01:55.3]}
14. Be2 {[%clk 0:02:18.3]} 14... Re8 {[%clk 0:01:50.2]} 15. Bf4 {[%clk
0:02:08.5]} 15... Bd7 {[%clk 0:01:36.5]} 16. Rfe1 {[%clk 0:02:04.8]} 16... Nc4
{[%clk 0:01:20.3]} 17. a5 {[%clk 0:01:42.4]} 17... Ba7 {[%clk 0:00:54.7]} 18.
Bxc4 {[%clk 0:01:42.2]} 18... dxc4 {[%clk 0:00:55.6]} 19. Nd2 {[%clk 0:01:41.4]}
19... Bxd4 {[%clk 0:00:43.7]} 20. cxd4 {[%clk 0:01:40.1]} 20... Nd5 {[%clk
0:00:44]} 21. Bg3 {[%clk 0:01:22.8]} 21... Bb5 {[%clk 0:00:34.1]} 22. Ne4 {[%clk
0:01:17.8]} 22... f5 {[%clk 0:00:18.7]} 23. Nc3 {[%clk 0:01:09.8]} 23... Nb4
{[%clk 0:00:08.9]} 24. d5 {[%clk 0:00:58.5]} 24... Nd3 {[%clk 0:00:04]} 25.
Rxe8+ {[%clk 0:00:55.7]} 25... Rxe8 {[%clk 0:00:04.9]} 26. d6 {[%clk 0:00:50.8]}
26... Rd8 {[%clk 0:00:04.8]} 27. Nd5 {[%clk 0:00:36]} 27... Kf7 {[%clk
0:00:01.1]} 28. Rb1 {[%clk 0:00:28.4]} 28... g5 {[%clk 0:00:01.4]} 29. h4 {[%clk
0:00:19.3]} 29... f4 {[%clk 0:00:01.2]} 30. Bh2 {[%clk 0:00:19.7]} 1-0

[Event "Early-Titled-Tuesday-Blitz-February-20-2024"]
[Site "Chess.com"]
[Date "2024.02.20"]
[Round "4"]
[White "Kumi29"]
[Black "snowlord"]
[Result "1-0"]
[WhiteElo "2606"]
[BlackElo "2878"]
[TimeControl "180+1"]
[EndTime "8:39:02 PST"]
[Termination "Kumi29 won by resignation"]

1. d4 {[%clk 0:02:58.1]} 1... e6 {[%clk 0:02:38.3]} 2. e4 {[%clk 0:02:56.4]}
2... d5 {[%clk 0:02:37.3]} 3. exd5 {[%clk 0:02:57.3]} 3... exd5 {[%clk
0:02:37.3]} 4. Bd3 {[%clk 0:02:56.6]} 4... Nc6 {[%clk 0:02:35.9]} 5. c3 {[%clk
0:02:56.7]} 5... Bd6 {[%clk 0:02:35.8]} 6. Qf3 {[%clk 0:02:56.5]} 6... Be6
{[%clk 0:02:16.8]} 7. Ne2 {[%clk 0:02:56.4]} 7... Qd7 {[%clk 0:02:09.8]} 8. Bf4
{[%clk 0:02:52.6]} 8... O-O-O {[%clk 0:02:09.6]} 9. Bxd6 {[%clk 0:02:49.3]} 9...
Qxd6 {[%clk 0:02:10.5]} 10. Nd2 {[%clk 0:02:48.1]} 10... Nf6 {[%clk 0:02:10.1]}
11. h3 {[%clk 0:02:47]} 11... Kb8 {[%clk 0:02:01.6]} 12. O-O-O {[%clk
0:02:44.8]} 12... Rhe8 {[%clk 0:01:54.5]} 13. Nf4 {[%clk 0:02:44.7]} 13... Bc8
{[%clk 0:01:48.7]} 14. Rde1 {[%clk 0:02:44.4]} 14... Ne7 {[%clk 0:01:48.8]} 15.
Nh5 {[%clk 0:02:40.1]} 15... Nxh5 {[%clk 0:01:45.5]} 16. Qxh5 {[%clk 0:02:40.2]}
16... Qf6 {[%clk 0:01:39.5]} 17. Nf3 {[%clk 0:02:34.5]} 17... Qf4+ {[%clk
0:01:36.4]} 18. Kb1 {[%clk 0:02:31.9]} 18... Bf5 {[%clk 0:01:36.7]} 19. Bxf5
{[%clk 0:02:22.9]} 19... Qxf5+ {[%clk 0:01:37.6]} 20. Qxf5 {[%clk 0:02:22.6]}
20... Nxf5 {[%clk 0:01:37.4]} 21. Kc2 {[%clk 0:02:19.9]} 21... f6 {[%clk
0:01:36.6]} 22. Kd3 {[%clk 0:02:16.9]} 22... c6 {[%clk 0:01:34]} 23. Rxe8 {[%clk
0:02:07]} 23... Rxe8 {[%clk 0:01:34.1]} 24. Re1 {[%clk 0:02:07.6]} 24... Rxe1
{[%clk 0:01:29.9]} 25. Nxe1 {[%clk 0:02:08.5]} 25... Kc7 {[%clk 0:01:29.9]} 26.
g4 {[%clk 0:02:03.4]} 26... Nd6 {[%clk 0:01:27.8]} 27. f3 {[%clk 0:02:00.3]}
27... b6 {[%clk 0:01:27.7]} 28. Ng2 {[%clk 0:01:59.3]} 28... Kd7 {[%clk
0:01:23.3]} 29. Nf4 {[%clk 0:01:56.1]} 29... a5 {[%clk 0:01:19.5]} 30. b3 {[%clk
0:01:52.1]} 30... g6 {[%clk 0:01:15.4]} 31. Ng2 {[%clk 0:01:48.8]} 31... c5
{[%clk 0:01:11.5]} 32. dxc5 {[%clk 0:01:34.5]} 32... bxc5 {[%clk 0:01:11.6]} 33.
Nf4 {[%clk 0:01:35]} 33... Kc6 {[%clk 0:01:09]} 34. Ne6 {[%clk 0:01:34.1]} 34...
h6 {[%clk 0:00:53]} 35. Nf8 {[%clk 0:01:23.6]} 35... g5 {[%clk 0:00:53]} 36. Ne6
{[%clk 0:01:15.3]} 36... Nf7 {[%clk 0:00:46.2]} 37. f4 {[%clk 0:01:12.2]} 37...
gxf4 {[%clk 0:00:38.8]} 38. Nxf4 {[%clk 0:01:12]} 38... Ng5 {[%clk 0:00:39.5]}
39. h4 {[%clk 0:01:01.2]} 39... Nf3 {[%clk 0:00:38.9]} 40. h5 {[%clk 0:01:01.5]}
40... Ne5+ {[%clk 0:00:37.7]} 41. Ke2 {[%clk 0:00:58.9]} 41... Nxg4 {[%clk
0:00:38.6]} 42. Ne6 {[%clk 0:00:57]} 42... Kd6 {[%clk 0:00:37.5]} 43. Nd8 {[%clk
0:00:55.8]} 43... Ne5 {[%clk 0:00:30.8]} 44. Nb7+ {[%clk 0:00:52.9]} 44... Kc6
{[%clk 0:00:31.3]} 45. Nxa5+ {[%clk 0:00:52.5]} 45... Kb6 {[%clk 0:00:31.9]} 46.
b4 {[%clk 0:00:53]} 46... c4 {[%clk 0:00:32.6]} 47. Ke3 {[%clk 0:00:49.4]} 47...
f5 {[%clk 0:00:30.6]} 48. Kd4 {[%clk 0:00:45]} 48... f4 {[%clk 0:00:29.9]} 49.
Kxe5 {[%clk 0:00:42.3]} 49... f3 {[%clk 0:00:30.5]} 50. Kxd5 {[%clk 0:00:43]}
1-0